fUSD/lending_fUSD_20240127
["ID","MTS","AMOUNT","RATE_DAILY","PERIOD"]
[312855674,1706367038757,-152.09,0.000335,2]
[312855675,1706367038766,-152.09,0.000335,2]
[312855676,1706367038775,-152.09,0.000335,2]
[312855677,1706367038785,-152.09,0.000335,2]
[312855678,1706367038795,-490.72385565,0.00034,4]
[312855679,1706367038805,-491.8638086,0.00036481,15]
[312855680,1706367038814,-1190.64444742,0.00036481,15]
[312855681,1706367038823,-381.37541112,0.00036481,15]
[312855682,1706367038833,-1779.79,0.00036524,5]
[312855683,1706367038842,-1815.5,0.00036563,5]
[312855685,1706367038851,-150.0,0.00037056,2]
[312855686,1706367038860,-20562.19796717,0.0003758,2]
[312855688,1706367038870,-502.05,0.00037702,2]
[312855690,1706367038879,-1000.0,0.00039,30]
[312855692,1706367038889,-150.0,0.00039005,2]
[312855694,1706367038898,-192.32,0.00039299,15]
[312855696,1706367038907,-155.47,0.00039391,2]
[312855698,1706367038916,-1066.33,0.00039396,2]
[312855700,1706367038925,-156.04,0.00039404,2]
[312855703,1706367038935,-1000.0,0.00039546,2]
[312855705,1706367038944,-250.0,0.00039578,2]
[312855707,1706367038953,-202.79,0.00039591,2]
[312855709,1706367038962,-2016.97,0.00039643,2]
[312855711,1706367038972,-150.0,0.00039746,7]
[312855713,1706367038981,-151.94880006,0.00039755,2]
[312855715,1706367038990,-502.05,0.00039966,2]
[312855717,1706367038999,-1256.78255544,0.0004,7]
[312855719,1706367039007,-152.09,0.0004,4]
[312855720,1706367039016,-152.09,0.0004,4]
[312855723,1706367039026,-152.09,0.0004,4]
[312855724,1706367039035,-152.09,0.0004,4]
[312855727,1706367039045,-152.09,0.0004,4]
[312855728,1706367039054,-152.09,0.0004,4]
[312855731,1706367039064,-152.09,0.0004,4]
[312855733,1706367039072,-152.09,0.0004,4]
[312855734,1706367039082,-152.09,0.0004,4]
[312855737,1706367039091,-152.09,0.0004,4]
[312855739,1706367039101,-152.09,0.0004,4]
[312855741,1706367039110,-152.09,0.0004,4]
[312855743,1706367039119,-152.09,0.0004,4]
[312855744,1706367039128,-152.09,0.0004,4]
[312855747,1706367039137,-152.09,0.0004,4]
[312855749,1706367039147,-152.09,0.0004,4]
[312855751,1706367039156,-152.09,0.0004,4]
[312855753,1706367039165,-152.09,0.0004,4]
[312855755,1706367039174,-152.09,0.0004,4]
[312855757,1706367039183,-152.09,0.0004,4]
[312855759,1706367039192,-579.97,0.00040151,2]
[312855761,1706367039202,-150.0,0.00040528,2]
[312855763,1706367039211,-1009.982695,0.00041,60]
[312855765,1706367039220,-493.23615563,0.00041426,4]
[312855767,1706367039229,-5000.0,0.00041427,4]
[312855769,1706367039238,-10000.0,0.00041474,3]
[312855771,1706367039247,-210.17753616,0.00041649,3]
[312855773,1706367039260,-150.0,0.00041687,2]
[312855775,1706367039269,-150.0,0.00041687,7]
[312855777,1706367039279,-203.15,0.00041737,10]
[312855779,1706367039288,-169.3,0.00041737,10]
[312855781,1706367039297,-846.5,0.00041737,10]
[312855783,1706367039307,-520.37269223,0.00041742,10]
[312855785,1706367039316,-834.97880657,0.00041745,4]
[312855787,1706367039326,-266.47788631,0.00041746,4]
[312855789,1706367039335,-535.86249677,0.00041747,5]
[312855791,1706367039345,-163.80983822,0.00041747,17]
[312855793,1706367039358,-33466.65255783,0.00041747,2]
[312855954,1706367040861,-465.82650474,0.00041747,2]
[312855965,1706367040918,-127.76903743,0.00041747,2]
[312855967,1706367040927,-2166.2861564,0.00041747,2]
[312856034,1706367041571,-828.56922861,0.00041747,2]
[312856035,1706367041582,-12724.40231499,0.00041747,2]
[312856036,1706367041592,-8735.04184584,0.00041747,2]
[312856037,1706367041604,-524.32057752,0.00041747,2]
[312856038,1706367041631,-253.73196015,0.00041747,2]
[312856039,1706367041642,-516.98635387,0.00041747,2]
[312856040,1706367041653,-590.95400001,0.00041747,2]
[312856041,1706367041688,-950.84316261,0.00041747,2]
[312856042,1706367041697,-817.61321223,0.00041747,2]
[312856060,1706367043553,-87597.84008777,0.00041747,2]
[312856061,1706367043563,-157.67499274,0.00041752,13]
[312856062,1706367043572,-155.70467047,0.00041752,2]
[312856063,1706367043582,-282.43205008,0.00041752,2]
[312856064,1706367043591,-152.87135841,0.00041752,2]
[312856065,1706367043601,-2132.14108254,0.00041781,16]
[312856066,1706367043611,-379.61,0.0004179,7]
[312856067,1706367043620,-13870.50976952,0.00041837,8]
[312856068,1706367043632,-289.0205874,0.00041837,8]
[312856069,1706367043724,-374.40390852,0.00041837,8]
[312856099,1706367046630,-0.02443216,0.00041837,8]
[312856106,1706367069412,5000000.0,0.00023,2]
[312856125,1706367143237,420.3224339,0.00022078,2]
[312856128,1706367180759,1882.01883733,0.00022078,2]
[312856131,1706367225497,447.16599203,0.00020468,2]
[312856132,1706367255125,-371.8763272,0.00022992,2]
[312856133,1706367255151,-543.77994778,0.00022993,2]
[312856134,1706367255176,-247.14293788,0.00022996,2]
[312856135,1706367255200,-9615.6930755,0.00022998,2]
[312856136,1706367255225,-3082.15119448,0.00022998,2]
[312856137,1706367255248,-266.47788631,0.00022998,2]
[312856138,1706367255273,-629.04989027,0.00022999,2]
[312856139,1706367255297,-720.91752398,0.00022999,2]
[312856140,1706367255321,-523.73846155,0.00022999,2]
[312856141,1706367255346,-156.65024925,0.00022999,2]
[312856142,1706367255371,-1256.01969501,0.00022999,2]
[312856143,1706367255395,-155.92431864,0.00022999,2]
[312856144,1706367255421,-1178.56113027,0.00022999,2]
[312856145,1706367255448,-1043.00595454,0.00022999,2]
[312856146,1706367255472,-473.54978766,0.00022999,2]
[312856147,1706367255496,-2781.06469987,0.00022999,2]
[312856148,1706367255523,-263.5764321,0.00022999,2]
[312856149,1706367255547,-367.84377804,0.00022999,2]
[312856150,1706367255571,-155.41484029,0.00022999,2]
[312856151,1706367255597,-204.2978794,0.00022999,2]
[312856152,1706367255621,-4639.05259022,0.00022999,2]
[312856153,1706367255649,-230.36664873,0.00022999,2]
[312856154,1706367255673,-155.63396038,0.00022999,2]
[312856155,1706367255697,-309.60149132,0.00022999,2]
[312856156,1706367255721,-2124.39626441,0.00022999,2]
[312856157,1706367255747,-372639.17245566,0.00023,2]
[312856158,1706367255771,-5000.0,0.00023,2]
[312856159,1706367255796,-6090.8379193,0.00023,2]
[312856160,1706367255821,-67521.25203692,0.00023,2]
[312856163,1706367282431,-597.46388645,0.000229,2]
[312856164,1706367282483,-546.24562617,0.00022999,2]
[312856165,1706367282514,-30352.07745246,0.00023,2]
[312856176,1706367475773,155.42229511,0.000207,2]
[312856212,1706367990561,-155.0,0.00022953,2]
[312856213,1706367990582,-150.0,0.00022953,2]
[312856214,1706367990603,-652.71323299,0.00022953,2]
[312856215,1706367990623,-3866.52268433,0.00022953,2]
[312856216,1706367990647,-3631.84855062,0.00022953,2]
[312856217,1706367990675,-5453.28620354,0.00022954,2]
[312856218,1706367990696,-3335.28469283,0.00022954,2]
[312856219,1706367990718,-7797.6592019,0.00022954,2]
[312856220,1706367990740,-1262.71758815,0.00022955,2]
[312856221,1706367990762,-2143.20144114,0.00022955,2]
[312856222,1706367990783,-385.02192497,0.00022956,2]
[312856223,1706367990806,-1143.70951262,0.00023,2]
[312856224,1706367990827,-669.86521771,0.00023,2]
[312856225,1706367990847,-176.52540934,0.00023,2]
[312856226,1706367990871,-155.28399107,0.00023,2]
[312856227,1706367990891,-156.86047358,0.00023,2]
[312856228,1706367990911,-939.5661534,0.00023,2]
[312856239,1706368146103,-202.09913361,0.00024,2]
[312856240,1706368146123,-4273.6526079,0.0002509,2]
[312856241,1706368146143,-855.29,0.0002509,2]
[312856242,1706368146163,-417.91455849,0.000271,2]
[312856263,1706368231735,-500.0,0.000271,2]
[312856264,1706368231756,-450.0,0.000271,2]
[312856266,1706368231791,-5942.08544151,0.000271,2]
[312856268,1706368231801,-157.22651786,0.00027128,2]
[312856270,1706368231811,-597.46388645,0.00027229,3]
[312856272,1706368231821,-544.07612989,0.00028,2]
[312856274,1706368231830,-155.0,0.0003,2]
[312856276,1706368231839,-3042.89802429,0.00031,7]
[312856332,1706368237567,-6257.10197571,0.00031,7]
[312856333,1706368237581,-597.46388645,0.00031557,5]
[312856334,1706368237590,-1543.39593485,0.00031799,2]
[312856335,1706368237766,-159.45,0.000324,2]
[312856336,1706368237776,-679.84539541,0.00033,4]
[312856337,1706368237785,-400.0,0.00033499,3]
[312856338,1706368237797,-524.75,0.000335,2]
[312856339,1706368237806,-524.75,0.000335,2]
[312856340,1706368237816,-524.75,0.000335,2]
[312856341,1706368237825,-524.75,0.000335,2]
[312856342,1706368237834,-524.75,0.000335,2]
[312856343,1706368237843,-267.35280761,0.000335,2]
[312856346,1706368237860,-257.39719239,0.000335,2]
[312856348,1706368237873,-524.75,0.000335,2]
[312856350,1706368237882,-524.75,0.000335,2]
[312856352,1706368237891,-524.75,0.000335,2]
[312856354,1706368237901,-524.75,0.000335,2]
[312856356,1706368237910,-524.75,0.000335,2]
[312856358,1706368237920,-524.75,0.000335,2]
[312856360,1706368237929,-524.75,0.000335,2]
[312856362,1706368237938,-524.75,0.000335,2]
[312856364,1706368237947,-524.75,0.000335,2]
[312856366,1706368237956,-524.75,0.000335,2]
[312856368,1706368237966,-524.75,0.000335,2]
[312856370,1706368237975,-524.75,0.000335,2]
[312856372,1706368237983,-524.75,0.000335,2]
[312856374,1706368237993,-524.75,0.000335,2]
[312856376,1706368238002,-157.22651786,0.00033514,2]
[312856378,1706368238011,-171.0,0.00033566,2]
[312856380,1706368238021,-241.33571683,0.00034,4]
[312856382,1706368238030,-595.46,0.00034781,2]
[312856384,1706368238039,-492.0,0.00034851,3]
[312856386,1706368238048,-335.26,0.00035371,15]
[312856388,1706368238057,-10000.0,0.00035527,2]
[312856390,1706368238066,-1715.42,0.00035675,2]
[312856392,1706368238076,-174.92,0.00035709,2]
[312856394,1706368238086,-1245.56,0.00035726,2]
[312856396,1706368238095,-200.0,0.00035806,2]
[312856398,1706368238104,-597.46388645,0.00035886,7]
[312856400,1706368238113,-200.0,0.00035946,2]
[312856402,1706368238122,-155.81810752,0.00035995,4]
[312856404,1706368238131,-853.22,0.00035997,2]
[312856406,1706368238141,-250.0,0.00035997,2]
[312856408,1706368238150,-2822.08,0.00036044,2]
[312856410,1706368238158,-158.47,0.00036201,2]
[312856412,1706368238167,-200.95,0.00036381,2]
[312856414,1706368238176,-11900.0,0.00036381,2]
[312856416,1706368238185,-158.47,0.00036515,2]
[312856418,1706368238195,-1222.62953913,0.00036631,15]
[312856420,1706368238207,-282.47019083,0.00036682,15]
[312856422,1706368238216,-508.8,0.0003669,2]
[312856424,1706368238225,-2000.0,0.0003669,2]
[312856426,1706368238234,-686.87,0.00036747,2]
[312856428,1706368238243,-1000.0,0.00036789,2]
[312856430,1706368238254,-10770.2,0.00036802,2]
[312856432,1706368238263,-158.47,0.0003683,2]
[312856434,1706368238272,-181.39,0.00036834,120]
[312856436,1706368238281,-997.5,0.00036893,2]
[312856438,1706368238290,-595.46,0.00037045,2]
[312856440,1706368238299,-158.47,0.00037144,2]
[312856442,1706368238308,-174.92,0.00037353,2]
[312856444,1706368238317,-158.47,0.00037458,2]
[312856446,1706368238326,-263.10939845,0.00037659,4]
[312856448,1706368238335,-15562.19796717,0.00037711,2]
[312856450,1706368238344,-158.47,0.00037773,2]
[312856452,1706368238353,-512.73,0.00037848,2]
[312856454,1706368238362,-158.47,0.00038087,2]
[312856456,1706368238371,-191.8,0.00038318,2]
[312856458,1706368238380,-150.0,0.00038356,2]
[312856460,1706368238389,-341.94,0.0003849,10]
[312856462,1706368238398,-13659.67543486,0.000385,7]
[312856464,1706368238407,-203.0,0.0003856,2]
[312856466,1706368238416,-492.39,0.0003899,10]
[312856468,1706368238425,-174.92,0.00038997,2]
[312856470,1706368238434,-834.55754338,0.00039,3]
[312856472,1706368238443,-410.32,0.0003901,10]
[312856474,1706368238452,-1430.80823834,0.0003902,2]
[312856476,1706368238461,-1808.85,0.00039021,5]
[312856478,1706368238470,-335.26,0.00039107,15]
[312856480,1706368238479,-155.47,0.0003926,2]
[312856482,1706368238488,-159.45,0.000393,3]
[312856484,1706368238496,-159.45,0.000393,3]
[312856486,1706368238505,-595.46,0.00039309,2]
[312856488,1706368238514,-1538.96064488,0.00039402,4]
[312856490,1706368238523,-1786.97,0.00039403,5]
[312856492,1706368238532,-150.0,0.00039555,2]
[312856494,1706368238541,-5000.0,0.00039594,4]
[312856496,1706368238550,-171.0,0.00039623,2]
[312856498,1706368238559,-235.82603025,0.00039743,4]
[312856500,1706368238568,-150.0,0.00039746,7]
[312856502,1706368238577,-151.94880006,0.00039755,2]
[312856504,1706368238586,-1827.07,0.00039763,5]
[312856506,1706368238595,-163.80983822,0.00039789,15]
[312856508,1706368238604,-530.76637128,0.00039789,2]
[312856510,1706368238613,-1000.0,0.00039881,2]
[312856512,1706368238623,-1714.28996263,0.00039884,2]
[312856514,1706368238632,-260.83897089,0.00039886,2]
[312856516,1706368238642,-680699.0344591,0.00039887,2]
[312856518,1706368238651,-567.09530869,0.00039889,9]
[312856520,1706368238660,-155.07286079,0.00039896,6]
[312856522,1706368238669,-154.98797225,0.00039897,13]
[312856524,1706368238678,-11103.6912,0.000399,2]
[312856526,1706368238688,-200.03009948,0.000399,2]
[312856528,1706368238697,-157.22651786,0.000399,2]
[312856530,1706368238706,-188.2880334,0.000399,2]
[312856532,1706368238715,-1000.0,0.00039905,2]
[312856534,1706368238727,-1000.0,0.00039928,2]
[312856536,1706368238737,-1000.0,0.00039952,2]
[312856538,1706368238746,-151.08297639,0.00039955,9]
[312856540,1706368238755,-25138.6276189,0.00039976,10]
[312856542,1706368238765,-1000.0,0.00039976,2]
[312856544,1706368238774,-4619.0747276,0.00039978,4]
[312856546,1706368238783,-2710.7079428,0.00039978,4]
[312856548,1706368238792,-176.08694116,0.00039978,4]
[312856550,1706368238802,-1112.92933456,0.00039978,4]
[312856552,1706368238811,-1170.62810312,0.00039978,4]
[312856554,1706368238820,-229.17631263,0.00039979,4]
[312856556,1706368238829,-655.41806816,0.00039979,4]
[312856558,1706368238838,-403.97517887,0.00039979,2]
[312856560,1706368238847,-559.28224827,0.00039979,4]
[312856562,1706368238857,-500.0,0.00039989,15]
[312856565,1706368238873,-485.48345124,0.00039989,15]
[312856568,1706368238899,-500.0,0.00039989,15]
[312856571,1706368238914,-467.95153309,0.00039989,15]
[312856574,1706368238928,-95819.4535143,0.0003999,5]
[312856575,1706368238942,-5177.68854337,0.0003999,5]
[312856576,1706368238969,-99987.3310969,0.0003999,5]
[312856726,1706368240332,-0.04975492,0.00036735,15]
[312856728,1706368240345,-294.63474582,0.00036735,15]
[312856731,1706368240361,-523.8010228,0.000398,2]
[312856733,1706368240372,-42090.79144809,0.0003999,5]
[312856738,1706368240402,-15474.35070645,0.0003999,5]
[312856740,1706368240415,-12492.57959733,0.0003999,5]
[312856981,1706368243283,-150.0,0.00037,30]
[312856983,1706368243294,-382.26323968,0.0003999,5]
[312857028,1706368245632,-155.0,0.00039989,2]
[312857030,1706368245645,-62753.74184934,0.0003999,5]
[312857097,1706369055293,165.30478149,0.00022967,2]
[312857098,1706369061794,957.69421576,0.00023,2]
[312857099,1706369091038,10061.511549,0.00022945,2]
[312857100,1706369113153,165.31954411,0.0002296,2]
[312857101,1706369147775,155.0,0.00022945,2]
[312857102,1706369155232,886.72938882,0.00022945,2]
[312857103,1706369161150,155.0,0.00022945,2]
[312857104,1706369167780,155.25167886,0.00022945,2]
[312857105,1706369175090,284.76119339,0.00022945,2]
[312857106,1706369179223,886.72938882,0.00022945,2]
[312857107,1706369181164,156.09516438,0.00022945,2]
[312857108,1706369189095,284.02543181,0.00022945,2]
[312857109,1706369199217,155.00069278,0.00022945,2]
[312857123,1706369434200,-587.67166474,0.00023019,2]
[312857125,1706369434256,-638.84869453,0.00023019,2]
[312857126,1706369434314,-5.1835049,0.00023019,2]
[312857127,1706369434324,-245.67395813,0.00023019,2]
[312857128,1706369434336,-893.06911581,0.00023019,2]
[312857129,1706369434346,-385.30595739,0.00023019,2]
[312857130,1706369434356,-232.43131942,0.00023019,2]
[312857131,1706369434366,-172.01115156,0.0002302,2]
[312857132,1706369434426,-362.1013399,0.0002302,2]
[312857176,1706369437831,-3049.10614402,0.00023018,2]
[312857177,1706369437842,-504.85794256,0.00023018,2]
[312857178,1706369437851,-728.60509669,0.0002302,2]
[312857179,1706369437860,-942.22358288,0.0002302,2]
[312857180,1706369437869,-19166.91135148,0.0002302,2]
[312857181,1706369437878,-1855.69106957,0.00023021,2]
[312857182,1706369437886,-521.86619454,0.00023021,2]
[312857183,1706369437896,-3195.91206529,0.00023021,2]
[312857184,1706369437904,-33819.59593894,0.00023021,2]
[312857185,1706369437913,-543.89474712,0.00023022,2]
[312857186,1706369437922,-583.11268152,0.00023022,2]
[312857187,1706369437931,-4357.46407703,0.00023022,2]
[312857188,1706369437940,-525.98243918,0.00023023,2]
[312857189,1706369437949,-24390.00633809,0.00023023,2]
[312857190,1706369437957,-150.0,0.00023023,2]
[312857191,1706369437966,-181.0,0.00023023,2]
[312857192,1706369437975,-150.0,0.00023023,2]
[312857193,1706369437985,-10572.76791723,0.00023024,2]
[312857194,1706369437995,-155.0,0.00023024,2]
[312857195,1706369438005,-517.58795719,0.00023024,2]
[312857197,1706369438015,-521.86619454,0.00023024,2]
[312857199,1706369438024,-1319.42979101,0.00023025,2]
[312857201,1706369438033,-543.77994778,0.00023025,2]
[312857203,1706369438042,-2952.25725639,0.00023025,2]
[312857204,1706369438052,-1000.0,0.00023032,2]
[312857205,1706369438061,-1002.606,0.00023048,2]
[312857206,1706369438070,-499.99,0.00023048,2]
[312857207,1706369438079,-3185.62367316,0.0002438,2]
[312857208,1706369438089,-157.10983001,0.0002439,2]
[312857209,1706369438098,-169.45,0.00024658,2]
[312857210,1706369438107,-550.0,0.00025,3]
[312857211,1706369438117,-304.03856689,0.00025,2]
[312857213,1706369438126,-165.3195441,0.0002508,2]
[312857215,1706369438136,-210.0,0.00025325,2]
[312857217,1706369438148,-210.0,0.00025325,2]
[312857219,1706369438157,-169.45,0.00026712,2]
[312857220,1706369438166,-600.0,0.00027,3]
[312857222,1706369438175,-165.3195441,0.000272,2]
[312857224,1706369438184,-1882.0,0.000276,2]
[312857226,1706369438194,-7070.0,0.000277,2]
[312857228,1706369438203,-169.45,0.00028767,2]
[312857230,1706369438212,-650.0,0.00029,3]
[312857232,1706369438222,-165.3195441,0.0002932,2]
[312857233,1706369438230,-202.0,0.00029364,2]
[312857236,1706369438240,-250.0,0.00029392,2]
[312857238,1706369438250,-2000.0,0.00029392,2]
[312857239,1706369438259,-228.85,0.00029471,10]
[312857242,1706369438268,-356.08,0.00029486,2]
[312857243,1706369438277,-200.0,0.00029512,2]
[312857245,1706369438286,-1771.8,0.00029586,2]
[312857247,1706369438295,-500.0,0.00029741,2]
[312857250,1706369438304,-2335.30668371,0.00029993,2]
[312857251,1706369438313,-531.71838697,0.00029993,2]
[312857254,1706369438322,-268.3291844,0.00029993,2]
[312857256,1706369438331,-155.0,0.0003,2]
[312857258,1706369438341,-369.47806052,0.0003,2]
[312857260,1706369438350,-369.47806052,0.0003,2]
[312857262,1706369438359,-369.47806052,0.0003,2]
[312857264,1706369438368,-369.47806052,0.0003,2]
[312857265,1706369438377,-369.47806052,0.0003,2]
[312857268,1706369438386,-765.2276162,0.00030192,4]
[312857270,1706369438395,-400.0,0.000302,2]
[312857272,1706369438404,-369.47806052,0.00030254,2]
[312857274,1706369438413,-369.47806052,0.00030254,2]
[312857276,1706369438422,-1005.01,0.00030257,2]
[312857278,1706369438431,-13074.24,0.00030264,2]
[312857280,1706369438440,-245.95,0.00030286,2]
[312857281,1706369438449,-250.0,0.00030307,2]
[312857283,1706369438458,-250.0,0.00030307,2]
[312857285,1706369438466,-369.47806052,0.00030335,2]
[312857287,1706369438475,-13416.69,0.00030345,2]
[312857289,1706369438484,-369.47806052,0.00030452,2]
[312857291,1706369438493,-170.52,0.00030463,2]
[312857293,1706369438501,-305.01,0.00030486,2]
[312857295,1706369438511,-150.0,0.00030558,2]
[312857297,1706369438520,-155.47,0.00030573,2]
[312857299,1706369438529,-369.47806052,0.00030648,2]
[312857302,1706369438538,-369.47806052,0.00030648,2]
[312857304,1706369438548,-369.47806052,0.00030648,2]
[312857306,1706369438557,-25505.65,0.00030658,2]
[312857308,1706369438566,-564.34,0.00030786,2]
[312857310,1706369438575,-837.15,0.00030802,2]
[312857312,1706369438584,-169.45,0.00030822,2]
[312857313,1706369438593,-181.09,0.00030866,2]
[312857315,1706369438602,-228.85,0.00030915,10]
[312857317,1706369438611,-700.0,0.00031,3]
[312857318,1706369438620,-369.47806052,0.00031365,2]
[312857319,1706369438629,-798.0,0.00031375,2]
[312857320,1706369438637,-245.95,0.00031407,2]
[312857321,1706369438646,-165.3195441,0.0003144,2]
[312857322,1706369438655,-2462.95,0.00031674,2]
[312857323,1706369438664,-209.66,0.00031705,2]
[312857324,1706369438673,-437.31151923,0.00032,2]
[312857325,1706369438682,-166.31,0.000321,2]
[312857327,1706369438691,-305.01,0.0003213,2]
[312857329,1706369438700,-164.91,0.00032312,2]
[312857331,1706369438709,-158.23,0.000324,2]
[312857333,1706369438718,-159.92,0.000324,2]
[312857335,1706369438727,-159.92,0.000324,2]
[312857337,1706369438736,-245.95,0.00032528,2]
[312857339,1706369438745,-169.45,0.00032877,2]
[312857341,1706369438755,-500.0,0.00032877,2]
[312857343,1706369438764,-318.26,0.00032877,15]
[312857345,1706369438773,-369.47806052,0.0003299,2]
[312857347,1706369438781,-750.0,0.00033,3]
[312857349,1706369438793,-202.0,0.00033035,2]
[312857351,1706369438802,-369.47806052,0.0003349,2]
[312857353,1706369438811,-369.47806052,0.0003349,2]
[312857355,1706369438820,-841.51,0.000335,2]
[312857357,1706369438829,-841.51,0.000335,2]
[312857359,1706369438838,-841.51,0.000335,2]
[312857361,1706369438847,-841.51,0.000335,2]
[312857363,1706369438856,-841.51,0.000335,2]
[312857365,1706369438865,-841.51,0.000335,2]
[312857367,1706369438873,-841.51,0.000335,2]
[312857369,1706369438882,-841.51,0.000335,2]
[312857371,1706369438891,-841.51,0.000335,2]
[312857373,1706369438900,-841.51,0.000335,2]
[312857375,1706369438909,-841.51,0.000335,2]
[312857377,1706369438917,-841.51,0.000335,2]
[312857379,1706369438926,-841.51,0.000335,2]
[312857381,1706369438935,-841.51,0.000335,2]
[312857383,1706369438944,-841.51,0.000335,2]
[312857385,1706369438952,-841.51,0.000335,2]
[312857387,1706369438961,-841.51,0.000335,2]
[312857388,1706369438979,-841.51,0.000335,2]
[312857391,1706369439015,-841.51,0.000335,2]
[312857393,1706369439024,-841.51,0.000335,2]
[312857395,1706369439034,-165.3195441,0.0003356,2]
[312857396,1706369439043,-150.0,0.00033581,2]
[312857398,1706369439052,-245.95,0.00033648,2]
[312857400,1706369439061,-305.01,0.00033773,2]
[312857414,1706369439182,-490.72385565,0.00034,4]
[312857416,1706369439191,-204.0,0.0003454,2]
[312857418,1706369439200,-245.95,0.00034769,2]
[312857420,1706369439209,-369.47806052,0.0003499,2]
[312857422,1706369439218,-369.47806052,0.0003499,2]
[312857424,1706369439227,-369.47806052,0.0003499,2]
[312857426,1706369439237,-369.47806052,0.0003499,2]
[312857428,1706369439245,-164.79,0.0003499,2]
[312857430,1706369439254,-164.79,0.0003499,2]
[312857432,1706369439263,-449.12480219,0.00035,4]
[312857434,1706369439272,-15776.97113927,0.00035,7]
[312857436,1706369439281,-800.0,0.00035,3]
[312857438,1706369439289,-10003.45393428,0.00035,2]
[312857440,1706369439298,-1834.84,0.00035,5]
[312857442,1706369439307,-371543.0551032,0.00035,2]
[312857444,1706369439317,-798.0,0.00035297,2]
[312857446,1706369439326,-305.01,0.00035417,2]
[312857448,1706369439335,-165.3195441,0.0003568,2]
[312857450,1706369439345,-150.0,0.00036023,2]
[312857452,1706369439354,-1117.24057673,0.00036301,30]
[312857454,1706369439363,-169.79,0.00036438,2]
[312857456,1706369439373,-1785.27,0.00036446,5]
[312857458,1706369439382,-404.17356765,0.00036613,14]
[312857460,1706369439391,-318.26,0.00036613,15]
[312857462,1706369439400,-202.0,0.00036706,2]
[312857464,1706369439409,-15494.98321367,0.00036733,15]
[312857466,1706369439418,-957.1494213,0.00036733,15]
[312857468,1706369439427,-288.96297166,0.00036785,13]
[312857470,1706369439436,-5295.3962809,0.000368,3]
[312857472,1706369439446,-352.94,0.000369,2]
[312857474,1706369439455,-1205.67262431,0.000369,8]
[312857476,1706369439464,-517.7592322,0.00036911,2]
[312857478,1706369439473,-154.86430643,0.00036919,2]
[312857480,1706369439482,-1760.31679642,0.00036961,2]
[312857482,1706369439491,-20139.872035,0.00037,10]
[312857484,1706369439500,-669.93369051,0.00037,7]
[312857487,1706369439509,-150.0,0.00037,30]
[312857489,1706369439518,-4137.90999496,0.00037,10]
[312857491,1706369439528,-850.0,0.00037,3]
[312857493,1706369439537,-164.79,0.00037002,2]
[312857495,1706369439546,-164.79,0.00037002,2]
[312857497,1706369439555,-164.79,0.00037002,2]
[312857499,1706369439564,-164.79,0.00037002,2]
[312857501,1706369439573,-15284.12684238,0.00037009,2]
[312857503,1706369439582,-311514.4002231,0.00037012,2]
[312857506,1706369439596,-99987.3310969,0.00037012,2]
[312857589,1706369440402,-787.22,0.00027585,2]
[312857591,1706369440411,-787.22,0.00029849,2]
[312857593,1706369440420,-500.95714588,0.00030256,4]
[312857595,1706369440429,-787.22,0.00032113,2]
[312857597,1706369440438,-787.22,0.00034377,2]
[312857599,1706369440447,-787.22,0.00036641,2]
[312857601,1706369440455,-166.24175112,0.00036961,2]
[312857603,1706369440465,-11099.25049371,0.00037012,2]
[312857606,1706369440478,-29109.9538553,0.00037012,2]